fUSD/lending_fUSD_20240625
["ID","MTS","AMOUNT","RATE_DAILY","PERIOD"]
[330363213,1719334243328,-304.42063196,0.00019178,2]
[330363214,1719334243338,-500.0,0.00019178,2]
[330363216,1719334243347,-500.0,0.00019178,2]
[330363217,1719334243357,-500.0,0.00019178,2]
[330363218,1719334243366,-500.0,0.00019178,2]
[330363219,1719334243376,-500.0,0.00019178,2]
[330363220,1719334243387,-1028.3,0.00019178,2]
[330363221,1719334243396,-564.6,0.00019178,2]
[330363222,1719334243406,-500.0,0.00019178,2]
[330363223,1719334243415,-1022.16,0.00019178,2]
[330363224,1719334243424,-500.0,0.00019178,2]
[330363225,1719334243434,-1218.82,0.00019178,2]
[330363226,1719334243443,-500.0,0.00019178,2]
[330363227,1719334243453,-590.55,0.00019178,2]
[330363228,1719334243463,-976.3,0.00019178,2]
[330363229,1719334243472,-500.0,0.00019178,2]
[330363231,1719334243482,-500.0,0.00019178,2]
[330363233,1719334243492,-500.0,0.00019178,2]
[330363235,1719334243502,-500.0,0.00019178,2]
[330363237,1719334243512,-500.0,0.00019178,2]
[330363239,1719334243521,-500.0,0.00019178,2]
[330363241,1719334243531,-500.0,0.00019178,2]
[330363243,1719334243540,-500.0,0.00019178,2]
[330363244,1719334243549,-500.0,0.00019178,2]
[330363245,1719334243560,-500.0,0.00019178,2]
[330363246,1719334243569,-803.05,0.00019178,2]
[330363247,1719334243579,-500.0,0.00019178,2]
[330363248,1719334243588,-500.0,0.00019178,2]
[330363249,1719334243598,-500.0,0.00019178,2]
[330363250,1719334243608,-928.35,0.00019178,2]
[330363251,1719334243618,-1529.67,0.00019178,2]
[330363252,1719334243628,-500.0,0.00019178,2]
[330363253,1719334243641,-688.02,0.00019178,2]
[330363254,1719334243653,-570.7,0.00019178,2]
[330363255,1719334243663,-500.0,0.00019178,2]
[330363256,1719334243673,-500.0,0.00019178,2]
[330363257,1719334243683,-44.33226132,0.00019178,2]
[330363258,1719334243723,-455.66773868,0.00019178,2]
[330363259,1719334243733,-47.81098412,0.00019178,2]
[330363260,1719334243744,-152.04996628,0.00019178,2]
[330363261,1719334243755,-1451.55,0.00019178,2]
[330363262,1719334243764,-500.0,0.00019178,2]
[330363263,1719334243774,-398.34030055,0.00019178,2]
[330363264,1719334243786,-101.65969945,0.00019178,2]
[330363265,1719334243796,-500.0,0.00019178,2]
[330363266,1719334243805,-758.29,0.00019178,2]
[330363267,1719334243814,-500.0,0.00019178,2]
[330363268,1719334243823,-500.0,0.00019178,2]
[330363269,1719334243832,-656.23,0.00019178,2]
[330363270,1719334243841,-285.99720471,0.00019178,2]
[330363271,1719334243850,-61.97309584,0.00019178,2]
[330363272,1719334243863,-324.98416055,0.00019178,2]
[330363273,1719334243875,-113.04274361,0.00019178,2]
[330363274,1719334243887,-500.0,0.00019178,2]
[330363275,1719334243897,-500.0,0.00019178,2]
[330363276,1719334243907,-988.69,0.00019178,2]
[330363277,1719334243919,-500.0,0.00019178,2]
[330363278,1719334243931,-910.81297456,0.00019178,2]
[330363279,1719334243943,-890.13702544,0.00019178,2]
[330363280,1719334243952,-500.0,0.00019178,2]
[330363281,1719334243963,-500.0,0.00019178,2]
[330363282,1719334243973,-500.0,0.00019178,2]
[330363283,1719334243982,-883.48,0.00019178,2]
[330363284,1719334243992,-500.0,0.00019178,2]
[330363285,1719334244003,-500.0,0.00019178,2]
[330363286,1719334244012,-1089.77,0.00019178,2]
[330363287,1719334244034,-500.0,0.00019178,2]
[330363288,1719334244047,-500.0,0.00019178,2]
[330363289,1719334244058,-500.0,0.00019178,2]
[330363290,1719334244068,-2266.79,0.00019178,2]
[330363291,1719334244079,-500.0,0.00019178,2]
[330363292,1719334244089,-1615.81,0.00019178,2]
[330363293,1719334244100,-620.24,0.00019178,2]
[330363294,1719334244110,-1192.88,0.00019178,2]
[330363295,1719334244120,-500.0,0.00019178,2]
[330363296,1719334244130,-500.0,0.00019178,2]
[330363297,1719334244145,-306.85826272,0.00019178,2]
[330363298,1719334244159,-293.93173728,0.00019178,2]
[330363299,1719334244168,-500.0,0.00019178,2]
[330363300,1719334244178,-1101.51,0.00019178,2]
[330363301,1719334244188,-500.0,0.00019178,2]
[330363302,1719334244198,-618.36,0.00019178,2]
[330363303,1719334244208,-200.0,0.00019178,2]
[330363304,1719334244218,-1245.16,0.00019178,2]
[330363305,1719334244227,-500.0,0.00019178,2]
[330363306,1719334244237,-637.8,0.00019178,2]
[330363307,1719334244246,-500.0,0.00019178,2]
[330363308,1719334244255,-500.0,0.00019178,2]
[330363309,1719334244264,-500.0,0.00019178,2]
[330363310,1719334244274,-500.0,0.00019178,2]
[330363311,1719334244283,-500.0,0.00019178,2]
[330363312,1719334244292,-500.0,0.00019178,2]
[330363313,1719334244301,-500.0,0.00019178,2]
[330363314,1719334244310,-500.0,0.00019178,2]
[330363315,1719334244319,-500.0,0.00019178,2]
[330363316,1719334244328,-500.0,0.00019178,2]
[330363317,1719334244337,-500.0,0.00019178,2]
[330363318,1719334244347,-500.0,0.00019178,2]
[330363319,1719334244356,-500.0,0.00019178,2]
[330363320,1719334244365,-1230.28,0.00019178,2]
[330363321,1719334244374,-1665.16,0.00019178,2]
[330363322,1719334244385,-500.0,0.00019178,2]
[330363323,1719334244396,-795.59,0.00019178,2]
[330363324,1719334244405,-500.0,0.00019178,2]
[330363325,1719334244414,-500.0,0.00019178,2]
[330363326,1719334244641,-1957.36,0.00019178,2]
[330363327,1719334244651,-500.0,0.00019178,2]
[330363328,1719334244661,-500.0,0.00019178,2]
[330363329,1719334244671,-740.96470947,0.00019178,2]
[330363330,1719334244698,-919.01529053,0.00019178,2]
[330363331,1719334244707,-500.0,0.00019178,2]
[330363332,1719334244718,-500.0,0.00019178,2]
[330363333,1719334244728,-18.2511517,0.00019178,2]
[330363334,1719334244740,-362.572002,0.00019178,2]
[330363335,1719334244770,-728.05842579,0.00019178,2]
[330363336,1719334244781,-861.78488582,0.00019178,2]
[330363337,1719334244794,-540.18000005,0.00019178,2]
[330363338,1719334244805,-358.02353464,0.00019178,2]
[330363339,1719334244815,-500.0,0.00019178,2]
[330363340,1719334244824,-204.71307912,0.00019178,2]
[330363341,1719334244837,-295.28692088,0.00019178,2]
[330363342,1719334244846,-57.18982498,0.00019178,2]
[330363343,1719334244858,-442.81017502,0.00019178,2]
[330363344,1719334244868,-2372.67,0.00019178,2]
[330363345,1719334244877,-500.0,0.00019178,2]
[330363346,1719334244889,-500.0,0.00019178,2]
[330363347,1719334244899,-500.0,0.00019178,2]
[330363348,1719334244909,-500.0,0.00019178,2]
[330363349,1719334244923,-500.0,0.00019178,2]
[330363350,1719334244933,-1427.39,0.00019178,2]
[330363351,1719334244943,-500.0,0.00019178,2]
[330363352,1719334244952,-500.0,0.00019178,2]
[330363353,1719334244963,-500.0,0.00019178,2]
[330363354,1719334244972,-500.0,0.00019178,2]
[330363355,1719334244982,-761.91,0.00019178,2]
[330363356,1719334244992,-500.0,0.00019178,2]
[330363357,1719334245005,-845.72,0.00019178,2]
[330363358,1719334245015,-500.0,0.00019178,2]
[330363359,1719334245039,-500.0,0.00019178,2]
[330363360,1719334245049,-500.0,0.00019178,2]
[330363361,1719334245060,-500.0,0.00019178,2]
[330363362,1719334245069,-500.0,0.00019178,2]
[330363363,1719334245079,-500.0,0.00019178,2]
[330363364,1719334245088,-500.0,0.00019178,2]
[330363365,1719334245099,-500.0,0.00019178,2]
[330363366,1719334245108,-500.0,0.00019178,2]
[330363367,1719334245118,-500.0,0.00019178,2]
[330363368,1719334245128,-905.04,0.00019178,2]
[330363369,1719334245139,-500.0,0.00019178,2]
[330363370,1719334245149,-500.0,0.00019178,2]
[330363371,1719334245159,-320.41070201,0.00019178,2]
[330363372,1719334245168,-500.0,0.00019178,2]
[330363373,1719334245178,-500.0,0.00019178,2]
[330363374,1719334245189,-509.30836075,0.00019178,2]
[330363375,1719334245198,-586.47,0.00019178,2]
[330363376,1719334245209,-500.0,0.00019178,2]
[330363377,1719334245219,-1143.54,0.00019178,2]
[330363378,1719334245229,-500.0,0.00019178,2]
[330363379,1719334245239,-500.0,0.00019178,2]
[330363380,1719334245248,-651.66,0.00019178,2]
[330363381,1719334245258,-3450.96,0.00019178,2]
[330363382,1719334245268,-506.27,0.00019178,2]
[330363383,1719334245278,-500.0,0.00019178,2]
[330363384,1719334245287,-1878.32,0.00019178,2]
[330363385,1719334245296,-586.20901699,0.00019178,2]
[330363386,1719334245306,-2914.29,0.00019178,2]
[330363387,1719334245316,-500.0,0.00019178,2]
[330363388,1719334245325,-500.0,0.00019178,2]
[330363389,1719334245336,-813.79,0.00019178,2]
[330363390,1719334245345,-500.0,0.00019178,2]
[330363391,1719334245355,-500.0,0.00019178,2]
[330363392,1719334245365,-500.0,0.00019178,2]
[330363393,1719334245375,-696.49,0.00019178,2]
[330363394,1719334245384,-500.0,0.00019178,2]
[330363395,1719334245398,-3051.77,0.00019178,2]
[330363396,1719334245410,-893.66,0.00019178,2]
[330363397,1719334245420,-776.46,0.00019178,2]
[330363398,1719334245429,-46.34082119,0.00019178,2]
[330363399,1719334245461,-453.65917881,0.00019178,2]
[330363400,1719334245471,-500.0,0.00019178,2]
[330363401,1719334245481,-742.3,0.00019178,2]
[330363402,1719334245490,-1321.29682119,0.00019178,2]
[330363403,1719334245503,-1897.43317881,0.00019178,2]
[330363404,1719334245512,-1482.99165519,0.00019178,2]
[330363405,1719334245524,-843.15773648,0.00019178,2]
[330363407,1719334245536,-713.30060833,0.00019178,2]
[330363408,1719334245546,-524.28475568,0.00019178,2]
[330363409,1719334245556,-500.0,0.00019178,2]
[330363410,1719334245566,-500.0,0.00019178,2]
[330363411,1719334245576,-500.0,0.00019178,2]
[330363412,1719334245586,-500.0,0.00019178,2]
[330363413,1719334245595,-559.99193048,0.00019178,2]
[330363414,1719334245605,-1975.78,0.00019178,2]
[330363415,1719334245615,-634.41620258,0.00019178,2]
[330363416,1719334245625,-500.0,0.00019178,2]
[330363417,1719334245639,-500.0,0.00019178,2]
[330363418,1719334245648,-500.0,0.00019178,2]
[330363419,1719334245658,-2346.34,0.00019178,2]
[330363420,1719334245667,-479.74444063,0.00019178,2]
[330363421,1719334245680,-20.25555937,0.00019178,2]
[330363422,1719334245690,-500.0,0.00019178,2]
[330363423,1719334245700,-500.0,0.00019178,2]
[330363424,1719334245709,-500.0,0.00019178,2]
[330363425,1719334245719,-151.0,0.00019178,2]
[330363426,1719334245729,-500.0,0.00019178,2]
[330363427,1719334245739,-371.92558307,0.00019178,2]
[330363428,1719334245748,-706.81885756,0.00019178,2]
[330363429,1719334245792,-85.10114244,0.00019178,2]
[330363430,1719334245802,-237.74903763,0.00019178,2]
[330363431,1719334245813,-474.88096237,0.00019178,2]
[330363432,1719334245823,-500.0,0.00019178,2]
[330363433,1719334245833,-791.92,0.00019178,2]
[330363434,1719334245842,-791.92,0.00019178,2]
[330363435,1719334245851,-791.92,0.00019178,2]
[330363436,1719334245861,-467.456931,0.00019178,2]
[330363437,1719334245870,-342.60479168,0.00019178,2]
[330363438,1719334246667,-366.62136337,0.00015016,2]
[330363439,1719334246678,-449.31520832,0.00019178,2]
[330363440,1719334246687,-791.92,0.00019178,2]
[330363441,1719334246697,-733.18,0.00019178,2]
[330363442,1719334246706,-791.92,0.00019178,2]
[330363443,1719334246716,-500.0,0.00019178,2]
[330363444,1719334246725,-500.0,0.00019178,2]
[330363445,1719334246735,-500.0,0.00019178,2]
[330363446,1719334246744,-2669.55,0.00019178,2]
[330363447,1719334246753,-500.0,0.00019178,2]
[330363448,1719334246762,-500.0,0.00019178,2]
[330363449,1719334246772,-500.0,0.00019178,2]
[330363450,1719334246781,-500.0,0.00019178,2]
[330363451,1719334246790,-500.0,0.00019178,2]
[330363452,1719334246799,-500.0,0.00019178,2]
[330363453,1719334246808,-500.0,0.00019178,2]
[330363454,1719334246817,-750.38,0.00019178,2]
[330363455,1719334246826,-643.76,0.00019178,2]
[330363456,1719334246835,-528.90143244,0.00019178,2]
[330363457,1719334246846,-1486.33,0.00019178,2]
[330363458,1719334246855,-500.0,0.00019178,2]
[330363459,1719334246865,-1163.65,0.00019178,2]
[330363460,1719334246874,-547.66,0.00019178,2]
[330363461,1719334246883,-1117.13,0.00019178,2]
[330363462,1719334246893,-1180.07115177,0.00019178,2]
[330363463,1719334246907,-414.03884823,0.00019178,2]
[330363464,1719334246916,-500.0,0.00019178,2]
[330363466,1719334246931,-410.25777615,0.00019178,2]
[330363467,1719334246943,-89.74222385,0.00019178,2]
[330363468,1719334246952,-151.0,0.00019178,2]
[330363469,1719334246963,-35.48276115,0.00019178,2]
[330363470,1719334246975,-464.51723885,0.00019178,2]
[330363471,1719334246984,-416.14065308,0.00019178,2]
[330363472,1719334246993,-500.0,0.00019178,2]
[330363473,1719334247007,-500.0,0.00019178,2]
[330363474,1719334247017,-1837.8,0.00019178,2]
[330363475,1719334247027,-500.0,0.00019178,2]
[330363476,1719334247036,-500.0,0.00019178,2]
[330363477,1719334247046,-3183.51,0.00019178,2]
[330363478,1719334247056,-500.0,0.00019178,2]
[330363479,1719334247065,-500.0,0.00019178,2]
[330363480,1719334247075,-500.0,0.00019178,2]
[330363481,1719334247084,-771.88,0.00019178,2]
[330363482,1719334247094,-500.0,0.00019178,2]
[330363483,1719334247104,-1031.58,0.00019178,2]
[330363484,1719334247113,-500.0,0.00019178,2]
[330363485,1719334247122,-500.0,0.00019178,2]
[330363486,1719334247131,-500.0,0.00019178,2]
[330363487,1719334247143,-1146.43,0.00019178,2]
[330363488,1719334247152,-500.0,0.00019178,2]
[330363489,1719334247162,-500.0,0.00019178,2]
[330363490,1719334247171,-3152.86,0.00019178,2]
[330363491,1719334247181,-387.87010114,0.00019178,2]
[330363492,1719334248056,-112.12989886,0.00019178,2]
[330363493,1719334248067,-500.0,0.00019178,2]
[330363494,1719334248077,-395.79773406,0.00019178,2]
[330363495,1719334248103,-717.75861333,0.00019178,2]
[330363496,1719334248116,-2060.80365261,0.00019178,2]
[330363497,1719334248126,-2145.45,0.00019178,2]
[330363498,1719334248137,-979.54,0.00019178,2]
[330363499,1719334248147,-45.41859952,0.00019178,2]
[330363500,1719334248167,-454.58140048,0.00019178,2]
[330363501,1719334248176,-175.60162951,0.00019178,2]
[330363502,1719334248207,-324.39837049,0.00019178,2]
[330363503,1719334248216,-183.88850513,0.00019178,2]
[330363504,1719334248227,-316.11149487,0.00019178,2]
[330363505,1719334248237,-619.17,0.00019178,2]
[330363506,1719334248246,-523.05,0.00019178,2]
[330363507,1719334248256,-500.0,0.00019178,2]
[330363508,1719334248265,-574.2,0.00019178,2]
[330363509,1719334248274,-500.0,0.00019178,2]
[330363510,1719334248283,-500.0,0.00019178,2]
[330363511,1719334248294,-500.0,0.00019178,2]
[330363512,1719334248304,-500.0,0.00019178,2]
[330363513,1719334248315,-500.0,0.00019178,2]
[330363514,1719334248325,-500.0,0.00019178,2]
[330363515,1719334248334,-500.0,0.00019178,2]
[330363516,1719334248344,-576.53,0.00019178,2]
[330363517,1719334248354,-500.0,0.00019178,2]
[330363518,1719334248363,-500.0,0.00019178,2]
[330363519,1719334248372,-2143.95,0.00019178,2]
[330363520,1719334248382,-500.0,0.00019178,2]
[330363521,1719334248395,-200.0,0.00019178,5]
[330363522,1719334248404,-560.76,0.00019178,2]
[330363523,1719334248414,-500.0,0.00019178,2]
[330363524,1719334248423,-503.59189186,0.00019178,2]
[330363525,1719334248436,-500.0,0.00019178,2]
[330363526,1719334248446,-727.32,0.00019178,2]
[330363527,1719334248455,-500.0,0.00019178,2]
[330363528,1719334248465,-500.0,0.00019178,2]
[330363529,1719334248475,-1829.63,0.00019178,2]
[330363530,1719334248485,-500.0,0.00019178,2]
[330363531,1719334248495,-500.0,0.00019178,2]
[330363532,1719334248504,-1813.32,0.00019178,2]
[330363533,1719334248514,-500.0,0.00019178,2]
[330363534,1719334248524,-3160.26,0.00019178,2]
[330363535,1719334248534,-500.0,0.00019178,2]
[330363536,1719334248543,-500.0,0.00019178,2]
[330363537,1719334248552,-500.0,0.00019178,2]
[330363538,1719334248562,-1731.91,0.00019178,2]
[330363539,1719334248572,-500.0,0.00019178,2]
[330363540,1719334248582,-496.63425867,0.00019178,2]
[330363541,1719334248591,-500.0,0.00019178,2]
[330363542,1719334248601,-4638.93,0.00019178,2]
[330363543,1719334248610,-500.0,0.00019178,2]
[330363544,1719334248620,-2653.03,0.00019178,2]
[330363545,1719334248629,-615.4,0.00019178,2]
[330363546,1719334248644,-924.37,0.00019178,2]
[330363547,1719334248653,-500.0,0.00019178,2]
[330363548,1719334248662,-500.0,0.00019178,2]
[330363549,1719334248671,-500.0,0.00019178,2]
[330363550,1719334248680,-1080.03,0.00019178,2]
[330363551,1719334248689,-151.0,0.00019178,2]
[330363552,1719334248698,-151.0,0.00019178,2]
[330363553,1719334248708,-151.0,0.00019178,2]
[330363554,1719334248717,-500.0,0.00019178,2]
[330363555,1719334248726,-151.0,0.00019178,2]
[330363556,1719334248735,-2728.01,0.00019178,2]
[330363557,1719334248745,-774.07,0.00019178,2]
[330363558,1719334248754,-2356.21,0.00019178,2]
[330363559,1719334248763,-175.651434,0.00019178,2]
[330363560,1719334248773,-3812.33,0.00019178,2]
[330363561,1719334248782,-500.0,0.00019178,2]
[330363562,1719334248791,-791.37,0.00019178,2]
[330363563,1719334248803,-500.0,0.00019178,2]
[330363564,1719334248812,-859.19,0.00019178,2]
[330363565,1719334248822,-1896.98,0.00019178,2]
[330363566,1719334248832,-759.92,0.00019178,2]
[330363567,1719334248841,-1722.6,0.00019178,2]
[330363568,1719334248851,-1956.64,0.00019178,2]
[330363569,1719334248860,-500.0,0.00019178,2]
[330363570,1719334248870,-458.52814801,0.00019178,2]
[330363571,1719334248880,-616.11,0.00019178,2]
[330363572,1719334248892,-2440.66,0.00019178,2]
[330363573,1719334248901,-601.5,0.00019178,2]
[330363574,1719334248910,-812.68,0.00019178,2]
[330363575,1719334248920,-1829.04,0.00019178,2]
[330363576,1719334248934,-500.0,0.00019178,2]
[330363577,1719334248943,-500.0,0.00019178,2]
[330363578,1719334248953,-1337.69,0.00019178,2]
[330363579,1719334248963,-3017.14,0.00019178,2]
[330363580,1719334248973,-500.0,0.00019178,2]
[330363581,1719334248982,-708.58,0.00019178,2]
[330363582,1719334248991,-500.0,0.00019178,2]
[330363583,1719334249003,-500.0,0.00019178,2]
[330363584,1719334249012,-500.0,0.00019178,2]
[330363585,1719334249021,-500.0,0.00019178,2]
[330363586,1719334249030,-15880.6,0.00019178,2]
[330363587,1719334249040,-546.7,0.00019178,2]
[330363588,1719334249050,-500.0,0.00019178,2]
[330363589,1719334249060,-500.0,0.00019178,2]
[330363590,1719334249069,-500.0,0.00019178,2]
[330363591,1719334249078,-1117.62176433,0.00019178,2]
[330363592,1719334249100,-1015.89823567,0.00019178,2]
[330363593,1719334249110,-500.0,0.00019178,2]
[330363594,1719334249119,-500.0,0.00019178,2]
[330363595,1719334249129,-1662.52,0.00019178,2]
[330363596,1719334249139,-500.0,0.00019178,2]
[330363597,1719334249148,-501.52274785,0.00019178,2]
[330363598,1719334249157,-500.0,0.00019178,2]
[330363599,1719334249166,-4282.8,0.00019178,2]
[330363600,1719334249176,-289.40855662,0.00019178,2]
[330363601,1719334250099,-210.59144338,0.00019178,2]
[330363602,1719334250110,-500.0,0.00019178,2]
[330363603,1719334250121,-1448.3,0.00019178,2]
[330363604,1719334250132,-4760.26,0.00019178,2]
[330363605,1719334250144,-500.0,0.00019178,2]
[330363606,1719334250153,-500.0,0.00019178,2]
[330363607,1719334250162,-500.0,0.00019178,2]
[330363608,1719334250171,-160.57171231,0.00019178,2]
[330363609,1719334250184,-346.44906839,0.00019178,2]
[330363610,1719334250324,-776.6731308,0.00019178,2]
[330363611,1719334250344,-337.0289881,0.00019178,2]
[330363613,1719334403414,306.02,0.00018849,30]
[330363619,1719334732785,684.3304205,0.00013332,2]
[330363621,1719334747425,684.3304205,0.00013332,2]
[330363622,1719334749127,1251.85328804,0.00013332,2]
[330363625,1719334774449,525.66,0.00010175,2]
[330363626,1719334774657,244.07204203,0.00012438,2]
[330363627,1719334774682,150.0,0.00012438,2]
[330363628,1719334774704,131.58795797,0.00012438,2]
[330363629,1719334788989,155.0,0.00013332,2]
[330363630,1719334797870,150.0,0.00012438,2]
[330363631,1719334797894,150.0,0.00012438,2]
[330363632,1719334797920,150.0,0.00012438,2]
[330363633,1719334797942,150.0,0.00012438,2]
[330363634,1719334797965,150.0,0.00012438,2]
[330363635,1719334797987,150.0,0.00012438,2]
[330363636,1719334798009,150.0,0.00012438,2]
[330363637,1719334798031,150.0,0.00012438,2]
[330363638,1719334798052,150.0,0.00012438,2]
[330363639,1719334798074,150.0,0.00012438,2]
[330363640,1719334798100,150.0,0.00012438,2]
[330363641,1719334798122,150.0,0.00012438,2]
[330363642,1719334798146,150.0,0.00012438,2]
[330363643,1719334798171,150.0,0.00012438,2]
[330363644,1719334798200,150.0,0.00012438,2]
[330363645,1719334798223,150.0,0.00012438,2]
[330363646,1719334798250,150.0,0.00012438,2]
[330363647,1719334798275,150.0,0.00012438,2]
[330363648,1719334798297,150.0,0.00012438,2]
[330363649,1719334798319,150.0,0.00012438,2]
[330363650,1719334798341,150.0,0.00012438,2]
[330363651,1719334798363,150.0,0.00012438,2]
[330363652,1719334798386,150.0,0.00012438,2]
[330363653,1719334798409,150.0,0.00012438,2]
[330363654,1719334798431,150.0,0.00012438,2]
[330363655,1719334798454,150.0,0.00012438,2]
[330363656,1719334798477,150.0,0.00012438,2]
[330363657,1719334798500,150.0,0.00012438,2]
[330363658,1719334798526,150.0,0.00012438,2]
[330363659,1719334798549,150.0,0.00012438,2]
[330363660,1719334798571,150.0,0.00012438,2]
[330363661,1719334798594,150.0,0.00012438,2]
[330363662,1719334798616,150.0,0.00012438,2]
[330363663,1719334798639,150.0,0.00012438,2]
[330363664,1719334798662,150.0,0.00012438,2]
[330363665,1719334798684,150.0,0.00012438,2]
[330363666,1719334798707,150.0,0.00012438,2]
[330363667,1719334798730,150.0,0.00012438,2]
[330363668,1719334798752,150.0,0.00012438,2]
[330363669,1719334798775,150.0,0.00012438,2]
[330363670,1719334798796,150.0,0.00012438,2]
[330363671,1719334798819,150.0,0.00012438,2]
[330363672,1719334798845,150.0,0.00012438,2]
[330363673,1719334798867,150.0,0.00012438,2]
[330363674,1719334798890,150.0,0.00012438,2]
[330363675,1719334798912,150.0,0.00012438,2]
[330363676,1719334798935,150.0,0.00012438,2]
[330363677,1719334798958,1660.15769386,0.00012438,2]
[330363678,1719334798999,-150.0,0.00012438,2]
[330363679,1719334799050,-150.0,0.00012438,2]
[330363680,1719334799122,-150.0,0.00012438,2]
[330363681,1719334799154,-150.0,0.00012438,2]
[330363682,1719334799203,-150.0,0.00012438,2]
[330363683,1719334799236,-150.0,0.00012438,2]
[330363684,1719334799273,-150.0,0.00012438,2]
[330363685,1719334799309,-150.0,0.00012438,2]
[330363686,1719334799352,-150.0,0.00012438,2]
[330363687,1719334799400,-150.0,0.00012438,2]
[330363688,1719334799427,-150.0,0.00012438,2]
[330363689,1719334799459,-150.0,0.00012438,2]
[330363690,1719334799500,-150.0,0.00012438,2]
[330363691,1719334799539,-150.0,0.00012438,2]
[330363692,1719334799570,-150.0,0.00012438,2]
[330363693,1719334799640,-150.0,0.00012438,2]
[330363694,1719334799670,-150.0,0.00012438,2]
[330363695,1719334799703,-150.0,0.00012438,2]
[330363696,1719334799752,-150.0,0.00012438,2]
[330363697,1719334799794,-150.0,0.00012438,2]
[330363698,1719334799834,-150.0,0.00012438,2]
[330363699,1719334799882,-150.0,0.00012438,2]
[330363700,1719334799927,-150.0,0.00012438,2]
[330363701,1719334799962,-150.0,0.00012438,2]
[330363702,1719334800001,-150.0,0.00012438,2]
[330363703,1719334800035,-150.0,0.00012438,2]
[330363704,1719334800079,-150.0,0.00012438,2]
[330363705,1719334800131,-150.0,0.00012438,2]
[330363706,1719334800161,-150.0,0.00012438,2]
[330363707,1719334800206,-250.07365907,0.00012438,2]
[330363708,1719334800241,-150.0,0.00012438,2]
[330363709,1719334800298,-150.0,0.00012438,2]
[330363710,1719334800331,-150.0,0.00012438,2]
[330363711,1719334800359,-150.0,0.00012438,2]
[330363712,1719334800409,-150.0,0.00012438,2]
[330363713,1719334800454,-150.0,0.00012438,2]
[330363727,1719335023634,280.51,0.00018849,30]
[330363728,1719335032127,-155.07,0.00012183,2]
[330363729,1719335032150,-155.07,0.00012289,2]
[330363730,1719335032177,-155.07,0.00012395,2]
[330363731,1719335032199,-300.0,0.00012437,2]
[330363732,1719335032222,-155.10759368,0.00012437,2]
[330363733,1719335032245,-6095.94980297,0.00012438,2]
[330363734,1719335032270,-300.53834418,0.00012438,2]
[330363735,1719335032292,-254.20654821,0.00012438,2]
[330363736,1719335032315,-263.33267476,0.00012438,2]
[330363737,1719335032337,-155.0,0.00012438,2]
[330363738,1719335032361,-155.0,0.00012438,2]
[330363739,1719335032384,-155.07,0.00012501,2]
[330363740,1719335032406,-155.07,0.00012606,2]
[330363741,1719335032428,-155.07,0.00012712,2]
[330363742,1719335032451,-155.07,0.00012818,2]
[330363743,1719335032474,-297.37308138,0.00012986,2]
[330363744,1719335032495,-201.36,0.00013214,2]